{"text_format":"1","workbook":"xlsx","n_sheets":11,"sheets":["Questionaire intial","Questionnaire 1","Questionnaire 2","Questionnaire 3","Questionnaire 4","Resultats","Reponses","RQ1","RQ2","RQ3","RQ4"],"not_rendered":{"charts":0,"images":0,"macros":1,"external_links":0,"defined_names":0,"comments":0,"pivot_tables":0},"unopened":[],"bounds":{"document_bytes":16777216,"sheet_cells":100000,"rows_first":2000,"rows_last":500,"rows_between":2000,"halvings":0,"cell_chars":16384,"cell_head_chars":4096},"cells_cut":0,"cells_raw":0,"read":"whole","date_system":"1900"}

{"sheet":"Questionaire intial","index":0,"n_rows":332,"n_cols":8,"rows_kept":332,"cut":false,"hidden":false,"merged":[[331,0,332,0],[227,2,227,4],[229,2,229,4],[227,0,228,0],[234,2,234,4],[228,2,228,4],[233,2,233,4],[230,2,230,4],[231,2,231,4],[232,2,232,4],[330,1,330,5],[325,0,326,0],[296,2,296,5],[297,2,297,5],[298,2,298,5],[299,2,299,5],[304,0,310,5],[325,1,325,5],[326,1,326,5],[300,2,300,3],[291,2,291,5],[292,2,292,5],[293,2,293,5],[294,2,294,5],[73,2,73,3],[95,2,95,5],[97,2,97,5],[285,2,285,5],[286,2,286,5],[281,2,281,5],[287,2,287,3],[289,0,290,0],[289,2,289,5],[290,2,290,5],[186,0,187,0],[192,0,193,0],[192,2,192,3],[224,0,224,5],[240,2,240,3],[240,0,240,1],[240,4,240,5],[241,0,241,1],[242,0,242,1],[243,0,243,1],[243,2,243,3],[243,4,243,5],[241,2,241,3],[241,4,241,5],[295,2,295,5],[247,2,247,5],[248,2,248,4],[251,0,252,0],[251,2,251,5],[252,2,252,5],[249,2,249,5],[269,0,270,0],[269,2,269,5],[270,2,270,4],[256,2,256,5],[257,2,257,3],[254,2,254,5],[255,2,255,5],[242,2,242,3],[242,4,242,5],[245,0,246,0],[245,2,245,5],[246,2,246,4],[253,2,253,5],[190,2,190,5],[183,2,183,5],[209,2,209,5],[211,2,211,5],[207,2,207,5],[184,2,184,5],[186,2,186,5],[197,4,197,5],[201,2,201,5],[195,2,195,3],[196,2,196,3],[196,4,196,5],[197,2,197,3],[195,4,195,5],[179,2,179,5],[180,2,180,5],[181,2,181,5],[182,2,182,5],[171,0,172,0],[171,2,171,5],[172,2,172,5],[169,0,169,5],[174,2,174,5],[175,2,175,5],[176,2,176,5],[177,2,177,3],[187,2,187,5],[92,2,92,3],[92,4,92,5],[93,2,93,3],[93,4,93,5],[173,2,173,5],[134,4,134,5],[135,4,135,5],[140,4,140,5],[134,2,134,3],[135,2,135,3],[136,2,136,3],[162,2,162,5],[167,2,167,3],[167,4,167,5],[100,0,100,5],[125,0,126,0],[126,2,126,3],[126,4,126,5],[115,2,115,3],[120,0,120,5],[164,0,165,0],[105,2,105,3],[106,2,106,3],[109,2,109,3],[78,2,78,3],[79,2,79,3],[82,2,82,3],[83,2,83,3],[84,2,84,3],[85,2,85,3],[88,2,88,3],[89,2,89,3],[90,2,90,3],[66,2,66,3],[66,0,67,0],[80,2,80,3],[69,2,69,3],[67,2,67,3],[46,2,46,3],[2,2,2,5],[3,2,3,5],[4,2,4,5],[21,2,21,5],[5,2,5,5],[6,2,6,5],[7,2,7,5],[19,2,19,5],[9,2,9,5],[17,2,17,5],[68,2,68,3],[71,2,71,3],[77,2,77,3],[62,0,62,5],[26,2,26,5],[31,2,31,5],[30,2,30,5],[39,2,39,5],[43,0,44,0],[55,4,55,5],[33,0,33,5],[22,2,22,5],[55,0,56,0],[56,4,56,5],[48,2,48,3],[48,4,48,5],[51,0,51,5],[50,2,50,3],[53,2,53,3],[46,4,46,5],[25,2,25,5],[28,0,28,5],[60,4,60,5],[55,2,55,3],[56,2,56,3],[57,2,57,3],[58,2,58,3],[57,4,57,5],[35,2,35,5],[58,4,58,5],[59,2,59,3],[59,4,59,5],[0,0,0,5],[18,2,18,5],[23,2,23,5],[24,2,24,5],[20,2,20,5],[8,2,8,5],[16,2,16,5],[13,2,13,3],[11,2,11,3],[14,2,14,5],[110,2,110,3],[127,2,127,3],[128,2,128,3],[129,2,129,3],[130,2,130,5],[127,4,127,5],[128,4,128,5],[129,4,129,5],[117,2,117,5],[122,2,123,5],[125,2,125,3],[125,4,125,5],[132,0,133,0],[132,2,132,3],[133,2,133,3],[154,0,155,0],[154,2,154,5],[155,2,155,5],[143,0,143,5],[145,0,146,0],[145,2,145,5],[146,2,146,5],[141,4,141,5],[138,2,138,3],[139,2,139,3],[140,2,140,3],[133,4,133,5],[136,4,136,5],[137,4,137,5],[137,2,137,3],[138,4,138,5],[139,4,139,5],[147,2,147,5],[148,2,148,5],[141,2,141,3],[132,4,132,5],[284,2,284,5],[160,2,160,5],[156,2,156,5],[157,2,157,5],[158,2,158,5],[159,2,159,5],[149,2,149,5],[152,2,152,5],[151,2,151,5],[164,2,164,5],[165,2,165,5],[166,2,166,5],[188,2,188,5],[189,2,189,5],[213,0,213,5],[225,2,225,5],[192,4,192,5],[193,2,193,3],[193,4,193,5],[205,0,205,5],[199,2,199,3],[203,0,203,5],[194,2,194,3],[194,4,194,5],[314,0,320,5],[329,1,329,5],[331,1,332,5],[327,1,327,5],[259,0,262,0],[259,2,259,5],[260,2,260,5],[261,2,261,5],[262,2,262,5],[263,2,263,5],[264,2,264,5],[265,2,265,5],[276,3,276,5],[272,2,272,5],[274,2,274,5],[271,2,271,4],[273,2,273,4],[275,2,275,5],[278,0,279,0],[278,2,278,5],[279,2,279,5],[282,2,282,5],[280,2,280,5],[283,2,283,5]]}
["Fiche signalétique générale"]
[]
["Nom de la structure :"]
["Abréviation :"]
["Adresse postale :"]
["Code postal :"]
["Ville :"]
["Téléphone :"]
["E-mail de la structure :"]
["Adresse de votre site Web :"]
["Avez-vous une page facebook pour votre structure"]
["Nombre de mention J'aime à ce jour"]
["Avez-vous un compte twitter pour votre structure "]
["Nombre de \"suiveurs\""]
["Utilisez vous d'autres réseaux sociaux avec vos publics, si oui lesquels"]
[]
["Nom et prénom du responsable :"]
["E-mail du responsable :"]
["Formation du responsable :"]
[]
[]
["Nom et prénom du signataire du questionnaire :"]
["Fonction du signataire dans la structure :"]
["E-mail du signataire :"]
["L'activité principale de la structure est-elle centrée sur l'astronomie ?"]
["Sinon, quelle part en pourcentage d'activité représente-t'elle ?",null,null,null,null,null,"%"]
["Sinon, quelle est votre activité principale ?"]
[]
["Votre structure"]
[]
["1.1 : Type de structure :"]
["autre :"]
["1.2 : Votre structure est hébergée :"]
["Il s'agit de déterminer si votre structure est hébergée au sein d'un autre organisme, indépendamment de votre forme juridique."]
["Cet hébergement se trouve dans :"]
[]
[]
["1.3 : Disposez-vous d'un terrain d'observation :"]
[]
["1.4 : Année de création de votre structure :"]
[]
["1.5 :Vous estimez être une structure à vocation : "]
[]
["1.6 : Evolution du nombre du nombre d'adhérents actifs sur les 6 dernières années :",null,2009,2010,2011,2012,2013,2014]
[]
[]
["1.7 : Quel est le rapport homme-femme (en pourcentage) au sein de votre structure ? ",null,null,null,"% de femmes"]
[]
["1.8 : En moyenne, vos adhérents résident dans un rayon de … km du siège de votre structure ",null,null,null,"km"]
[]
["1.9 : Nombre annuel total de bénéficiaires de vos actions (en 2014) :"]
["Il s'agit du nombre total de  personnes ayant été touchées physiquement d'une manière ou d'une autre par l'ensemble de vos activités hors internet et hors publications"]
[]
["1.10 : Montant de vos recettes anuelles (en 2014) :",null,null,null,"€"]
[]
["1.11 : Origines de vos recettes annuelles en %  (en 2014) :",null,"Cotisation des membres",null,null,null,"%"]
[null,null,"Subvention, mécénat",null,null,null,"%"]
[null,null,"Contrats et recettes d'animation…",null,null,null,"%"]
[null,null,"Ventes de produits",null,null,null,"%"]
[null,null,"Autres",null,null,null,"%"]
[null,null,null,null,1]
[]
["Vos moyens"]
[]
["2.1 : Disposez-vous d'équipements d'observations :"]
[]
["2.2 : Nombre de téléscopes ou lunettes par catégorie     (y compris ceux de vos membres)",null,"Diamètre de l'instrument",null,"Nombre en mobile","Nombre en fixe (coupole ou abri)"]
[null,null,"< 203 mm"]
[null,null,"Entre 203 et 400 mm"]
[null,null,"> 401 mm"]
[]
["Quel est le diamètre (en mm) de votre télescope principal installé en fixe :"]
[]
["Combien d'instruments sont GOTO :"]
[]
["2.3 : Disposez-vous d'un planétarium :"]
[]
["2.3.1 : Oui, un fixe d'un diamètre de (en mètre) : "]
["Nombre annuel de scéances réalisées :"]
["Nombre total de scolaires ayant assistés aux scéances :"]
["Nombre total de public ayant assisté aux scéances (hors scolaires) :"]
[]
["2.3.2 : Oui, un mobile d'un diamètre de (en mètre) :"]
["Nombre annuel de scéances réalisées :"]
["Nombre total de scolaires ayant assistés aux scéances :"]
["Nombre total de public ayant assisté aux scéances (hors scolaires) :"]
[]
["2.3.3 : Si non, vous arrive-t'il de louer en extérieur un planétarium mobile ?"]
["Nombre annuel de scéances ainsi réalisées :"]
["Nombre total de scolaires ayant assistés aux scéances :"]
["Nombre total de public ayant assisté aux scéances (hors scolaires) :"]
[]
["2.3.4 : Modalités d'accès aux scéances :",null,"% d'entrées gratuites"]
[null,null,"% d'entrées payantes"]
[]
["2.4 : Ces 5 dernières années quel(s) équipements significatif(s) votre structure a-t-elle acquis ? :"]
[]
["autres précisez"]
[]
[]
["Vos publications"]
[]
["3.1 : Editez-vous un bulletin d'information :"]
[]
["3.1.2 : Un bulletin interne, à destination des membres :"]
["sous quelle forme  ?"]
["Nombre moyen de destinataires par numéro :"]
[]
["3.1.3 : Un bulletin externe, une revue, diffusé à l'extérieur de la structure :"]
["sous quelle forme ?"]
["Nombre moyen de destinataires par numéro :"]
[]
[]
["3.2 : Vous disposez d'un site internet :"]
[]
["3.2.2 : Nombre  de pages vues par an  (valeur 2014)"]
[]
["3.2.3 :  Nombre  de visiteurs uniques ou différents par an  (valeur 2014)"]
[]
[]
["3.3 : Votre structure est-elle abonnée à une ou plusieurs revues scientifiques ?"]
[]
["3.3.1 : Si oui, laquelle ou lesquelles :"]
[]
[]
["3.3.2 : Si non, ces revues circulent elles dans votre structure :",null,"Astronomie Magazine",null,"La Recherche"]
[null,null,"Astrosurf Magazine",null,"Sciences et Avenir"]
[null,null,"Ciel & Espace",null,"Sciences et Vie"]
[null,null,"Espace Magazine",null,"Sky and Telescope"]
[null,null,"L'astronomie",null,"     Autres (précisez ci-dessous)"]
[]
[]
["3.3.3 : Pouvez-vous classez ces revues (de 1 à 9) de la plus lue à le moins lue :",null,"Astronomie Magazine"]
[null,null,"Astrosurf Magazine"]
[null,null,"Ciel & Espace"]
[null,null,"Espace Magazine"]
[null,null,"L'astronomie"]
[null,null,"La Recherche"]
[null,null,"Sciences et Avenir"]
[null,null,"Sciences et Vie"]
[null,null,"Sky and Telescope"]
[null,null,"Autres"]
[]
["Vos collaborations"]
[]
["4.1 : Avez-vous des collaborations régulières avec d'autres structures :",null,"    Structures nationales d'astronomie"]
[null,null,"    Strucutures nationales, régionales (FRMJC, CCSTI…)"]
[null,null,"   Réseaux d'observateurs,précisez ci-dessous"]
[null,null,"    Structures locales, précisez ci-dessous"]
[null,null,"    Non, pas vraiment"]
[]
["Réseaux d'observateurs avec lesquels la structure collabore :"]
["Structures locales avec lesquelles la structure collabore :"]
[]
["4.2 : Avez-vous des collaborations avec des observatoires ou des laboratoires de recherche :",null,"    Pour des soutiens techniques"]
[null,null,"    Pour des projets communs (techniques, observations, recherches concertées)"]
[null,null,"    Pour des interventions de l'institution dans votre structure"]
[null,null,"    Pour aider, soutenir ou renforcer des animations dans l'observatoire ou le laboratoire dans le cadre de portes ouvertes, d'accueil du public…"]
[null,null,"    Oui, autre (précisez ci-dessous)"]
[null,null,"    Oui, avec des chercheurs individuels"]
[null,null,"    Non, pas vraiment"]
[]
["Autres collaborations avec des observatoires ou des laboratoires de recherche :"]
[]
["4.3 : Avez-vous des contacts avec des homologues étrangers :",null,"    Non, aucun"]
[null,null,"    Oui, en Europe"]
[null,null,"    Oui, ailleurs dans le monde (hors Europe)"]
["Nombre total de partenaires à l'étranger avec qui vous êtes en relation :"]
[]
["Vos stages et actions de formation"]
[]
["5.1 : Menez-vous des actions de formations (sur le thème de l'astronomie) :",null,"    Non, aucune"]
[null,null,"    A destination des membres"]
[null,null,"    A destination d'astronomes amateurs extérieurs à votre structure"]
[null,null,"    A destination d'animateurs occasionnels ou professionnels"]
[null,null,"    A destination d'enseignants"]
[null,null,"    Oui, autres (précisez ci-dessous)"]
["Autres formations :"]
[]
["5.2 : Sous quelle forme se déroulent ces formations :",null,"    Stages"]
[null,null,"   Conférences"]
[null,null,"    Cours, journées d'études"]
[null,null,"    Formation à distance (Internet, télématique...)"]
[null,null,"    Autres (précisez ci-dessous)"]
["Autres formes de formations :"]
[]
["5.3 : Ces formations s'inscrivent-elles dans un cursus diplomant :",null,"    BAFA"]
[null,null,"    BPJES…"]
[null,null,"    DU"]
[null,null,"    Autres (précisez ci-dessous)"]
["Autres :"]
[]
["5.4 : Volumes (en nombre de jours) des actions de formation sur l'année 2014 selon le public touché :",null,"Destinataires de vos formations",null,"Volume annuel (valeur 2014) en nombre de journée"]
[null,null,"Vos membres"]
[null,null,"Amateurs extérieurs"]
[null,null,"Animateurs"]
[null,null,"Enseignants"]
[null,null,"Autres"]
[]
["5.5 : Nombre total de personnes formées en 2014 :"]
[]
["5.6 : Produisez-vous des outils de formation en ligne (tutoriels, cours, vidéo, MOOC :"]
[]
["Les animateurs de votre structure (en astronomie)"]
[]
["6.1 : Nombre d'animateurs de votre structure :"]
[]
["6.1.1 : Nombre d'animateurs bénévoles spécialisés en astronomie :"]
[]
["6.1.2 : Nombre d'animateurs indemnisés ou rémunérés spécialisés en astronomie : "]
[]
["6.1.3 : Pourcentage de  femmes  :",null,null,null,null,null,"%"]
[]
["6.2 : Qualification des animateurs rémunérés de votre structure :"]
[]
["Fonction occupée",null,"Emploi non aidé","Emploi jeunes Fonjep, avenir...         (1)","Autres emplois aidés  (2)","Nombre total d'animateurs rémunérés "]
["Animateur généraliste saisonnier",null,null,null,null,{"$f":"SUM(C217:E217)","v":0}]
["Animateur spécialisé (*) saisonnier",null,null,null,null,{"$f":"SUM(C218:E218)","v":0}]
["Animateur généraliste permanent",null,null,null,null,0]
["Animateur spécialisé (*) permanent",null,null,null,null,0]
["Démonstrateur ou animateur permanent en planétarium",null,null,null,null,0]
["Responsable d'activités, coordonnateur d'activités, directeur",null,null,null,null,0]
["Accueil, secrétaire, standardiste, technicien de maintenance",null,null,null,null,0]
["Autres, précisez (ci-dessous)",null,null,null,null,0]
["(*) : Concerne uniquement les animateurs spécialisés en astronomie, spatial ou sciences"]
["Autres :"]
[]
["6.3 : Nombre et nature de la formation de vos animateurs :",null,"Nature de la formation",null,null,"Nombre d'animateurs"]
[null,null,"Diplôme d'animation volontaire (BAFA, BASE)"]
[null,null,"Diplôme professionnel d'animation (BEATEP, DUT, licences…)"]
[null,null,"Expérience de terrain"]
[null,null,"Formation spécifique (CNED, DU Astro)"]
[null,null,"Enseignants, chercheurs…"]
[null,null,"Autres, précisez ci dessous"]
[]
[]
["Les activités et opérations à destination du public"]
[]
["7.1 : Nombre de bénéficiaires de vos actions publiques en 2014 :"]
[]
["Nature",null,"Volume public total   (en personnes)",null,"Nombre de manifestations organisées en 2014"]
["Nuits des étoiles 2014"]
["Fête de la science en 2014"]
["Soirées publique d'observations (hors les deux précédentes actions)"]
[]
["7.2 : Votre participation aux opérations Nuits des étoiles et Fête de la science :",null,"    Votre structure n'a jamais participé aux \"Nuits des étoiles\""]
[null,null,"Dernière année à laquelle vous avez participé aux Nuis des étoiles :"]
[null,null,"    Votre structure n'a jamais participé à la \"Fête de la Science\""]
[null,null,"Dernière année à laquelle vous avez participé à la \"Fête de la science\""]
[null,null,"    Votre structure n'a jamais participé au  \"Jour de la nuit\""]
[]
["7.3 : Votre implication dans les manifestations publiques a-t-elle pour but :",null,"    De recueillir de nouvelles adhésions"]
[null,null,"    De faire connaître vos activités localement"]
[null,null,"    De vous faire connaître sur le plan national"]
[null,null,"    De vous faire reconnaître par les bailleurs de fonds"]
[null,null,"    Pour l'intérêt général"]
[null,null,"    Autres (précisez ci-dessous)"]
["Autres :"]
[]
["7.4 : Votre structure a-t-elle organsier une participation collective (plus de 2 personnes) durant les 24 dernires mois à ces manifestations  :",null," "]
[null,null," "]
[]
[]
[]
[null,null,"Autres, précisez"]
[]
[]
["L'avenir de votre structure"]
[]
["8.1 : Prévoyez-vous des projets d'équipements, devant démarrer dans les 2 prochaines années :",null,"    Non, aucun"]
[null,null,"    Oui, un instrument en fixe, précisez le diamètre (en mètres) :"]
[null,null,"    Oui, un observatoire équipé, précisez le diamètre (en mètres) :"]
[null,null,"    Oui, un planétarium itinérant"]
[null,null,"    Oui, un planétarium en fixe, précisez le diamètre (en mètres) :"]
[null,null,"    Oui, un centre d'animation astronomique ouvert à tous"]
[null,null,"    Oui, un télescope en remote contrôle (piloté à distance)"]
[null,null,"    Autres, (précisez) :"]
[]
["8.2 : Avez-vous (ou ressentez-vous) des besoins de formations techniques :",null,"    Aucun besoin"]
[null,null,"    Techniques astronomiques"]
[null,null,"    Gestion et animation des réseaux sociaux"]
[null,null,"    Gestion et comptabilité"]
[null,null,"    Promotion et communication"]
[null,null,"    Animation pour des interventions externes à votre structure"]
[null,null,"    Animation pour des interventions au sein de votre structure"]
[null,null,"    Organisation de manifestations"]
[null,null,"    Autres (précisez ci-dessous)"]
["Autres :"]
[]
["8.3 : Avez-vous besoin d'une aide particulière, et quelle forme pourrait-elle prendre :",null,"    Aucune aide souhaitée"]
[null,null,"    Stages et/ou week-ends de formation, rencontres à thème"]
[null,null,"    Interventions de spécialistes"]
[null,null,"    Notes techniques"]
[null,null,"    Malles pédagogiques"]
[null,null,"    Prêt de matériel"]
[null,null,"    Informations régulières"]
[null,null,"    Conseils dans vos démarches"]
[null,null,"    Coordination avec d'autres structures sur le plan départemental, régional ou national"]
[null,null,"    Contacts avec des professionnels"]
[null,null,"    Autres (précisez ci-dessous)"]
[]
[]
["8.4 : Prévoyez-vous une nouvelle opération pour votre structure, de nouvelles activités, de nouveaux contacts, lesquels :"]
[]
[]
[]
[]
[]
[]
[]
[]
[]
["8.5 : Avez-vous des attentes particulières des structures nationales :"]
[]
[]
[]
[]
[]
[]
[]
[]
[]
[]
["Détermination du (ou des) questionnaires(s) à remplir"]
["Pour savoir comment remplir cette partie, reportez au document intitulé \"Choix des formulaires.doc\""]
["Ouvert/Néophytes                                                           Structure d'animation ouverte","Réservé aux membres/Néophytes"]
[null,"Club péri-scolaire                                                                          Fermé classique"]
[]
["(activité typique : Nuit des étoiles)","(activité typique : sortie d'observation entre copain)"]
["(activité typique : accueil de missions scientifiques)","(activité typique : construction et usages privatifs)"]
[]
["Observatoire d'accueil pour amateurs branchés                              Ouverts/Avertis","Groupement d'amateurs                                        Réservé aux membres/Avertis"]

{"sheet":"Questionnaire 1","index":1,"n_rows":109,"n_cols":24,"rows_kept":109,"cut":false,"hidden":false,"merged":[[45,2,45,4],[46,2,46,4],[47,2,47,4],[48,2,48,4],[108,2,108,3],[0,0,0,5],[3,0,5,0],[3,2,3,3],[3,4,3,5],[4,2,4,3],[5,2,5,3],[4,4,4,5],[5,4,5,5],[6,2,6,3],[7,2,7,3],[6,4,6,5],[7,4,7,5],[89,0,91,0],[91,2,91,4],[9,0,10,0],[9,2,10,4],[18,4,18,5],[19,2,19,3],[19,4,19,5],[21,2,21,5],[22,2,22,5],[23,2,23,5],[16,2,16,3],[16,4,16,5],[17,2,17,3],[17,4,17,5],[18,2,18,3],[27,2,27,5],[28,2,28,5],[29,2,29,5],[30,2,30,5],[31,2,31,5],[32,2,32,5],[34,0,35,0],[35,2,35,3],[35,4,35,5],[25,0,26,0],[25,2,25,5],[26,2,26,5],[45,0,48,0],[81,2,81,5],[82,2,82,5],[42,2,42,3],[42,4,42,5],[43,2,43,3],[43,4,43,5],[37,0,37,5],[39,0,41,0],[39,2,39,3],[39,4,39,5],[40,2,40,3],[40,4,40,5],[41,2,41,3],[41,4,41,5],[80,2,80,4],[68,2,68,5],[69,2,69,5],[70,2,70,5],[71,2,71,5],[64,2,64,5],[66,0,67,0],[66,2,66,5],[67,2,67,5],[59,2,59,4],[60,2,60,4],[62,2,62,5],[63,2,63,5],[55,0,56,0],[55,2,55,4],[56,2,56,4],[57,2,57,4],[58,2,58,4],[72,2,72,5],[73,2,73,5],[71,23,73,23],[102,0,104,0],[102,2,102,5],[103,2,103,5],[104,2,104,5],[98,0,100,0],[95,2,95,4],[87,2,87,5],[77,2,77,4],[83,2,83,5],[84,2,84,5],[85,2,85,5],[86,2,86,5],[105,2,105,5],[106,2,106,5],[74,2,74,5],[75,2,75,4],[77,0,79,0],[98,2,98,5],[93,0,94,0],[93,2,93,4],[94,2,94,4]]}
["Vos activités à destination des scolaires"]
[]
[]
["1.1 : Dans le cadre des activités de type 1, combien touchez-vous de jeunes participants au moins une fois par an dans un cercle de rayon de :",null,"Rayon",null,"Nombre annuel de personnes (valeur 2014)"]
[null,null,"0 - 10 km"]
[null,null,"11 - 30 km"]
[null,null,"31 - 100 km"]
[null,null,"101 - 300 km"]
[]
["1.2 : Où se situe le site principal d'activité (citez la ville de plus de 10 000 habitants la plus proche) ?"]
[]
[]
["1.3 : Fréquence d'interventions auprès des scolaires :"]
[]
["1.4 : Nombre moyen de participants :"]
[]
["1.5 : Le public touché est constitué en % :",null,"Primaire",null,null,null,"%"]
[null,null,"Collège",null,null,null,"%"]
[null,null,"Lycée",null,null,null,"%"]
[null,null,"Université",null,null,null,"%"]
[]
["1.6 : Ces interventions sont-elles :",null,"    Gratuites"]
[null,null,"    Payantes par les établissements scolaires, les participants"]
[null,null,"    Rémunérées par des contrats ou des subventions publiques"]
[]
["1.7 : Quel type d'animations mettez-vous en place pour les scolaires (maximum 4 sélections) :",null,"    Travaux pratiques"]
[null,null,"    Cours"]
[null,null,"    Conférences"]
[null,null,"    Séances d'observation"]
[null,null,"    Stages"]
[null,null,"    Encadrement de classes de découverte ou à thème"]
[null,null,"    Séances de planétarium"]
[null,null,"    Visites d'expositions, de sites professionnels"]
[]
["1.8 : Intervenez-vous pour ce type d'activités en dehors de votre structure ?"]
[null,null,"Distance moyenne de votre structure (en km) :"]
[]
["Vos activités à destination des individuels (hors scolaires)"]
[]
["2.1 : Dans le cadre des activités de type 1, combien touchez-vous de jeunes participants au moins une fois par an dans un cercle de rayon de :",null,"Rayon",null,"Nombre annuel de personnes (valeur 2014)"]
[null,null,"0 - 10 km"]
[null,null,"11 - 30 km"]
[null,null,"31 - 100 km"]
[null,null,"101 - 300 km"]
[]
["2.2 Le public est en pourcentage  :",null,"Des voisins, riverains ou habitants proches :",null,null,null,"%"]
[null,null,"Des habitants de la Région :",null,null,null,"%"]
[null,null,"Des vacanciers (passent une nuit dans la Région) :",null,null,null,"%"]
[null,null,"Des touristes étrangers :",null,null,null,"%"]
[]
["2.3 : Fréquence d'organisation d'intervention ou d'animations (hors scolaires) :"]
[]
["2.4 : Nombre moyen de participants :"]
[]
[]
["2.5: Le public bénéficiant de ces activités est principalement composé  en %:",null,"    D'hommes :"]
[null,null,"    De femmes :"]
["Précisez le pourcentage dans la colonne de droite",null,"    D'astronomes amateurs ou de passionnés d'astronomie"]
[null,null,"    De personnes de moins de 25 ans"]
[null,null,"    De personnes de 26 à 49 ans :"]
[null,null,"    De personnes de plus de 50 ans :"]
[]
["2.6 : Ces interventions sont-elles :",null,"    Gratuites"]
[null,null,"    Payantes par les établissements scolaires, les participants"]
[null,null,"    Rémunérées par des contrats ou des subventions publiques"]
[]
["2.7 : Quel type d'animation mettez-vous en place hors scolaire (maximum 4 sélections) :",null,"    Travaux pratiques"]
[null,null,"    Cours"]
[null,null,"    Conférences"]
[null,null,"    Séances d'observation"]
[null,null,"    Stages"]
[null,null,"    Encadrement de classes de découverte ou à thème",null,null,null,null,null,null,null,null,null,null,null,null,null,null,null,null,null,null,null,null,"2.11 :Les activités d'animation représente quel pourcentage de vos recettes annuelles"]
[null,null,"    Séances de planétarium"]
[null,null,"    Visites d'expositions, de sites professionnels"]
[null,null,"    Autres, précisez ci-dessous"]
["Autres:"]
[]
["2.8. Accueillez-vous des groupes ? Si oui, quel volume cette activité représente en nombre de personne touchées par an  (inclus dans vos données à la question 2,1)"]
[]
[]
["2.8.1: Les groupes proviennent de :"]
[null,null,"    Villages de vacances"]
[null,null,"    Centres de vacances ou de loisirs"]
[null,null,"    Centres culturels ou MJC / MPT"]
[null,null,"    Maison de retraite"]
[null,null,"    Autres associations"]
[null,null,"    Comités d'entreprise"]
[null,null,"    Nature & découvertes"]
[]
["2.9: Participez-vous à des foires, salons, des expositions… pour présenter vos activités, votre structure :"]
[]
[null,null,"Précisez le nombre de personnes touchées sur ces opérations (en 2014) :"]
[]
["2.10 : Disposez-vous d'une salle d' exposition permanente :",null,"    Non aucune"]
[null,null,"    Oui, précisez sa surface (en m²)",null,null,null,"m2"]
[null,null,"Si oui, quelle est sa fréquentation annuelle (en nombre de personne) :"]
[]
[]
["2.11 :Les activités d'animation représente quel pourcentage de vos recettes annuelles",null,null,null,null,null," en %"]
[]
[]
[]
["2.12 : Vendez vous à vos visiteurs, publics, des produits tels que :",null,"   Non rien"]
[null,null,"    Cartes du ciel, …"]
[null,null,"    Photographies, posters, librairie"]
[null,null,"   Gadgets, goodies"]
[null,null,"    Accessoirés, Instruments"]
[]
["2.13 : Ces ventes éventuelles représentent quel pourcentage de vos recettes annuelles",null,null,null," en %"]

{"sheet":"Questionnaire 2","index":2,"n_rows":154,"n_cols":7,"rows_kept":154,"cut":false,"hidden":false,"merged":[[9,0,10,0],[9,2,10,4],[22,2,22,5],[23,2,23,5],[6,2,6,3],[6,4,6,5],[7,2,7,3],[7,4,7,5],[0,0,0,5],[3,0,5,0],[3,2,3,3],[3,4,3,5],[4,2,4,3],[4,4,4,5],[5,2,5,3],[5,4,5,5],[24,3,24,5],[25,3,25,5],[26,3,26,5],[27,3,27,5],[28,3,28,5],[29,3,29,5],[68,2,68,4],[69,2,69,5],[40,2,40,5],[46,2,46,5],[47,2,47,5],[48,2,48,5],[49,2,49,5],[50,2,50,5],[51,2,51,5],[52,2,52,5],[53,2,53,5],[61,2,61,4],[63,0,63,5],[66,0,67,0],[66,2,66,5],[67,2,67,5],[42,0,45,0],[42,2,42,5],[43,2,43,5],[44,2,44,5],[45,2,45,5],[37,0,38,0],[37,2,37,5],[38,2,38,5],[39,2,39,5],[70,2,70,5],[71,2,71,5],[54,2,54,5],[55,2,55,5],[56,2,56,5],[58,0,60,0],[58,2,58,5],[59,2,59,5],[60,2,60,5],[72,2,72,5],[73,2,73,5],[75,0,75,3],[98,2,98,4],[100,2,100,4],[101,2,101,4],[102,2,102,4],[83,2,83,4],[95,2,95,4],[77,2,77,5],[80,2,80,4],[81,2,81,4],[82,2,82,4],[84,2,84,4],[86,2,86,4],[88,0,90,3],[94,2,94,4],[96,2,96,4],[97,2,97,4],[90,4,90,5],[103,2,103,4],[127,2,127,5],[128,2,128,5],[129,2,129,5],[130,2,130,5],[120,0,120,5],[123,2,123,5],[124,2,124,5],[125,2,125,4],[116,0,118,0],[117,2,117,5],[118,2,118,4],[109,2,109,4],[110,2,110,4],[109,0,111,0],[112,2,112,4],[113,2,113,4],[114,2,114,4],[105,2,105,3],[141,3,141,5],[142,3,142,5],[143,3,143,5],[144,3,144,5],[136,2,136,5],[137,2,137,5],[139,2,139,5],[140,2,140,5],[131,2,131,5],[132,2,132,5],[133,2,133,5],[135,2,135,5],[153,2,153,5],[154,2,154,5],[148,3,148,5],[149,3,149,5],[151,2,151,5],[152,2,152,5],[145,3,145,5],[146,3,146,5],[147,3,147,5]]}
["Vos activités"]
[]
[]
["1.1 : Dans le cadre des activités de type 2, combien de personnes touchez-vous au moins une fois par mois dans un cercle de :",null,"Rayon",null,"Nombre annuel de personnes (valeur 2003)"]
[null,null,"0 - 10 km"]
[null,null,"11 - 30 km"]
[null,null,"31 - 100 km"]
[null,null,"101 - 300 km"]
[]
["1.2 : Où se situe le site principal d'activité (citez la ville de plus de 10 000 habitants la plus proche) ?"]
[]
[]
["1.3 : Fréquence moyenne d'organisation des réunions de vos membres, adhérents de votre structure :"]
[]
["1.4 : Conditions d'accès à ces réunions et nombre moyen de participants :"]
[]
[]
["1.5 : Fréquence moyenne des séances d'observations :"]
[]
["1.4 : Conditions d'accès aux séances d'observation et nombre moyen de participants :"]
[]
[]
["1.7 : Réalisez-vous des projets techniques :",null,"    Non, aucun"]
[null,null,"    Oui, précisez :"]
[null,null,null,"    Réalisation de télescopes"]
[null,null,null,"    Réalisation de récepteurs (type caméra CCD, Photométre, Spectromètre…)"]
[null,null,null,"    Réalisation d'un observatoire"]
[null,null,null,"    Réalisation d'outils pédagogiques"]
[null,null,null,"    Autres, précisez ci-dessous"]
[]
[]
["1.8 : Nombre moyen de personnes impliquées dans vos projets techniques ?"]
[]
["1.9 : Durée moyenne de vos projets (de la conception à la réalisation) :"]
[]
["1.10 : Ces projets sont-ils destinés à une utilisation au sein de votre structure ou une utilisation personnelle des membres impliqués dans le projet ?"]
[]
["1.11 : Quelles formes prennent les séances d'initiation pour les membres :",null,"    Aucun"]
[null,null,"    Stages"]
[null,null,"    Week-ends ou journées techniques"]
[null,null,"    Séances de travail ou d'observations dans le cadre de réunion de votre club"]
[]
["1.12 : Dans les deux dernières années (2014 et 2015) votre structure ou vos adhérents ont-il effectué des observations ou des missions dans des observatoires de mission :",null,"    Non"]
[null,null,"    Oui, dans un observatoire professionnel"]
[null,null,"    Oui, dans des observatoires privés, appartenant à des individuels"]
[null,null,"    Oui, à l'observatoire de Buthiers (Planète Sciences)"]
[null,null,"    Oui, à l'observatoire du Col de la Lèbe"]
[null,null,"    Oui, au Centre d'astronomie de Saint-Michel l'Observatoire"]
[null,null,"    Oui, à l'observatoire de la Hague (Ludiver)"]
[null,null,"    Oui, auprès des Observateurs Associés (Coronographe du Pic du Midi)"]
[null,null,"    Oui, à l'observatoire du Pic du Midi avec l'AT60"]
[null,null,"    Oui à l'observatoire de Saint-Véran (Astroqueyras)"]
[null,null,"    Oui à l'observatoire de Bélesta (Adagio)"]
[null,null,"    Oui, à l'observatoire de la plaine des Makes (La Réunion)"]
[null,null,"    Oui, à l'observatoire Sirène"]
[null,null,"    Oui dans l'observatoire d'autres clubs, précisez ci-dessous"]
[]
[]
["1.13 : Votre structure ou vos adhérents sont-il parfois impliqués dans des campagnes d'observations professionnelles, des commissions scientifiques… :",null,"    Non, jamais"]
[null,null,"    Oui, occasionnellement"]
[null,null,"    Oui, activement à des groupes de travail (type GFOES, AFOEV…) ou dans des campagnes professionnelles d'observations"]
[null,null,"Combien de membres de votre structure sont impliqués dans ces travaux :"]
[]
["Votre public"]
[]
[]
["2.1 : Existe-t-il des conditions particulières de participation à vos activités :",null,"    Non, aucune"]
[null,null,"    Oui, faire partie de l'établissement (CE, FSE…)"]
[null,null,"    Oui, âge minimum, lequel :",null,null,null,"ans"]
[null,null,"    Oui, formation minimum"]
[null,null,"    Oui, une pratique astronomique minimum"]
[null,null,"    Oui, habiter dans une zone géographique précise (commune, département…)"]
[null,null,"    Oui, autres (précisez ci-dessous)"]
[]
[]
["2.2 : Quel est l'âge moyen de vos membres et sa répartition :"]
[]
["Âge moyen :"]
[]
[]
["Répartition :",null," % d'adhérents de moins de 16 ans :"]
[null,null," % d'adhérents ayant entre 16 et 26 ans :"]
[null,null," % d'adhérents entre 27 et 50 ans :"]
[null,null," % d'adhérents de plus de 50 ans :"]
[null,null,"Total",null,null,1]
[]
[null,null," Quel est le pourcentage de femmes :",null,null,null,"%"]
[]
["2.3 : Quel est le pourcentage de vos membres disposant d'un instrument d'observation au moins sup. ou égal à 80 mm pour une lunette  ou sup. ou égal à 130 mm pour un télescope :"]
[]
[]
[]
["2.4 : Quel est le pourcentage de vos membres qui ont accès à internet :"]
[]
["2.5 : Votre public est constitué (en %)",null,"Enseignants, cadres sup., prof. Libérales :",null,null,null,"%"]
[null,null,"Etudiants, scolaires :",null,null,null,"%"]
[null,null,"Artisans, ouvriers :",null,null,null,"%"]
[null,null,"Retraités :",null,null,null,"%"]
[null,null,"Total",null,null,1]
[]
[null,null,"Néophytes (pas de pratiques antérieures) :",null,null,null,"%"]
[null,null,"Astronomes amateurs débutants :",null,null,null,"%"]
[null,null,"Astronomes amateurs confirmés :",null,null,null,"%"]
[null,null,"Total",null,null,1]
[]
["2.5.8 Quel est le pourcentage de femmes : ",null,null,null," en %"]
[]
["2.6 : Quel est le taux annuel moyen de nouveaux membres (sur les deux dernières années) :"]
[]
["2,7. Combien de vos adhérents en % sont recrutés par ces modes",null,"par la presse locale, le bulletin municipal",null,null,null,"%"]
[null,null,"par le bouche à oreille, le parrainnage par des adhérents",null,null,null,"%"]
[null,null,"sur des manifestations (foire, nuits des étoiles)",null,null,null,"%"]
[null,null,"par internet",null,null,null,"%"]
[null,null,"par des scolaires",null,null,null,"%"]
[null,null,"je ne sais pas"]
[]
["2.7 : Parmi vos membres, combien sont devenus astronomes professionnels, ingénieurs de recherches dans un laboratoire, un observatoire astronomique ?"]
[null,null,"    Non aucun"]
[null,null,"    Oui, précisez combien sur les 10 dernières années"]
[]
["Vos équipements"]
[]
[]
["3.1 : Votre parc de matériel astronomique :",null,"    Non, la structure ne dispose d'aucun matériel"]
[null,null,"    Oui, elle dispose d'un parc de matériel d'observation"]
[null,null,"    La structure utilise le matériel de ses membres, précisez en % la part :"]
[]
["3.2 : Disposez-vous d'outils complémentaire :",null,"    Non, aucun"]
[null,null,"    Oui, caméra CCD"]
[null,null,"    Oui, matériel photographique (appareil photo, APN, Webcam…)"]
[null,null,"    Oui, ordinateur(s)"]
[null,null,"    Oui, spectroscope, photomètre"]
[null,null,"    Oui, autres (précisez ci-dessous)"]
[]
[]
["3.3 : Utilisation du matériel :",null,"    Le matériel est à l'usage exclusif des membres ou du public"]
[null,null,"    Le matériel est éventuellement prêté ou loué à d'autres structures"]
[null,null,"    Le matériel peut être loué au public"]
[]
["3.4 : Menez-vous des projets à objectif scientifique :",null,"    Non, aucun"]
[null,null,"    Oui, précisez en la nature :"]
[null,null,null,"    Projets de vérification scientifique comme... (précisez ci-dessous)"]
[null,null,null,"    Projets de recherche ou de détection : Etoiles doubles, variables"]
[null,null,null,"    Projets de recherche ou de détection de Supernovae, étoiles Be"]
[null,null,null,"    Projets de recherche ou de détection PHEMU"]
[null,null,null,"    Projets de recherche ou de détection planétaire"]
[null,null,null,"    Projets de recherche ou de détection d'astéroïdes"]
[null,null,null,"    Projets de recherche solaire"]
[null,null,null,"    Autres (précisez ci-dessous)"]
[]
[]
["3.5 : Ces projets sont-ils menés en direct :",null,"    Avec des astronomes professionnels"]
[null,null,"    Avec des laboratoires, des observatoires"]
[null,null,"    Avec des associations spécialisées, si oui précisez ci-dessous lesquelles :"]

{"sheet":"Questionnaire 3","index":3,"n_rows":77,"n_cols":7,"rows_kept":77,"cut":false,"hidden":false,"merged":[[76,3,76,5],[74,2,74,5],[75,2,75,5],[70,2,70,4],[72,0,73,0],[72,2,72,5],[73,2,73,5],[61,2,61,4],[68,2,68,5],[69,2,69,5],[66,2,66,4],[63,0,64,0],[63,2,63,4],[64,2,64,4],[65,2,65,4],[56,2,56,5],[57,2,57,5],[50,2,50,4],[51,2,51,4],[52,2,52,4],[53,2,53,4],[55,2,55,5],[39,0,40,0],[48,0,49,0],[48,2,48,4],[49,2,49,4],[40,2,40,4],[41,2,41,4],[42,2,42,4],[39,2,39,4],[30,0,30,5],[37,2,37,3],[37,4,37,5],[33,0,35,0],[33,2,33,3],[33,4,33,5],[34,2,34,3],[36,2,36,3],[36,4,36,5],[34,4,34,5],[35,2,35,3],[35,4,35,5],[23,2,23,3],[24,2,24,3],[26,2,26,5],[27,2,27,5],[28,2,28,5],[21,2,21,5],[6,2,6,3],[6,4,6,5],[7,2,7,3],[7,4,7,5],[16,2,16,5],[17,2,17,5],[18,2,18,5],[19,2,19,5],[20,2,20,5],[9,0,12,0],[9,2,9,4],[10,2,10,4],[11,2,11,4],[12,2,12,4],[0,0,0,5],[3,0,5,0],[3,2,3,3],[3,4,3,5],[4,2,4,3],[4,4,4,5],[5,2,5,3],[5,4,5,5]]}
["Vos activités à destination des groupes"]
[]
[]
["1.1 : Dans le cadre des activités de type 3, combien de personnes touchez-vous au moins une fois par mois dans un cercle de :",null,"Rayon",null,"Nombre annuel de personnes (valeur 2003)"]
[null,null,"0 - 10 km"]
[null,null,"11 - 30 km"]
[null,null,"31 - 100 km"]
[null,null,"101 - 300 km"]
[]
["1.2 : Le public est en pourcentage",null,"des voisins,riverains, habitants proches",null,null,null,"%"]
[null,null,"des habitants de la région",null,null,null,"%"]
[null,null,"des vacanciers (passent au moins une nuit à proximité)",null,null,null,"%"]
[null,null,"des touristes étrangers",null,null,null,"%"]
[]
["1.3 : Fréquence moyenne d'organisation des réunions de votre structure :"]
[]
["1.4 : Les groupes sont constitués de :",null,"    De clubs et associations d'astronomie"]
[null,null,"    D'entreprises"]
[null,null,"    D'étudiants"]
[null,null,"    D'enseignants"]
[null,null,"    Autres, précisez-ci-dessous"]
[]
[]
["Nombre de groupes animés par an :"]
["Nombre total de personnes touchées dans ce cadre :"]
[]
["1.5 : Ces interventions sont-elles :",null,"    Gratuites"]
[null,null,"    Payantes pour les groupes"]
[null,null,"    Rémunérées par des contrats ou des subventions publiques"]
[]
["Vos activités à destination des individuels (hors groupes)"]
[]
[]
["2.1 : Dans le cadre des activités de formation, d'animations, combien de personnes touchez-vous au moins une fois par mois dans un cercle de :",null,"Rayon",null,"Nombre annuel de personnes (valeur 2003)"]
[null,null,"0 - 10 km"]
[null,null,"11 - 30 km"]
[null,null,"31 - 100 km"]
[null,null,"101 - 300 km"]
[]
["2.2 : Où se situe le site principal, si différent de (1.2), (citez la ville de plus de 10 000 habitants la plus proche) ?",null,"des voisins,riverains, habitants proches",null,null,null,"%"]
[null,null,"des habitants de la région",null,null,null,"%"]
[null,null,"des vacanciers (passent au moins une nuit à proximité)",null,null,null,"%"]
[null,null,"des touristes étrangers",null,null,null,"%"]
[]
["2.3 : Fréquence d'organisation d'intervention d'animation :"]
[]
["2.4 : Nombre moyen de participants :"]
[]
["2.5 : Le public bénéficiant de ces activités est principalement composé :",null,"    D'hommes :",null,null,null,"%"]
[null,null,"    De femmes :",null,null,null,"%"]
["Précisez le pourcentage dans la colonne de droite",null,"    D'astronomes amateurs ou de passionnés d'astronomie",null,null,null,"%"]
[null,null,"    De personnes de moins de 25 ans",null,null,null,"%"]
[null,null,"    De personnes de 26 à 49 ans :",null,null,null,"%"]
[null,null,"    De personnes de plus de 50 ans :",null,null,null,"%"]
[]
["2.6 : Ces interventions sont-elles :",null,"    Gratuites"]
[null,null,"    Payantes par les structures, les participants"]
[null,null,"    Rémunérées par des contrats ou des subventions publiques"]
[]
["2.8 : Disposez-vous d'un hébergement sur votre structure :"]
[]
["2.9 : Quel est le taux de remplissage annuel de votre capacité d'accueil :",null,null,null,null,"%"]
[]
["2.10 : Quel est le pourcentage annuel de personnes qui reviennent :",null,"    Une fois / an",null,null,null,"%"]
[null,null,"    Deux fois / an",null,null,null,"%"]
[null,null,"    Trois fois / an",null,null,null,"%"]
[null,null,"    Plus de trois fois / an"]
[]
["2.11 : Votre structure est-elle :",null,"    Ouverte à tous"]
[null,null,"    Ouvert à un public spécifique, précisez lequel ci-dessous"]
[]
[]
["2.12 : Votre structure produit-elle par ses membres ou son public :",null,"    Des travaux scientifiques"]
[null,null,"    Des photographies"]
[null,null,"    Des réalisations techniques"]
[null,null,"    Des membres pour les clubs"]
[null,null,"Autres, précisez"]

{"sheet":"Questionnaire 4","index":4,"n_rows":137,"n_cols":7,"rows_kept":137,"cut":false,"hidden":false,"merged":[[7,2,7,3],[7,4,7,5],[50,0,56,0],[52,2,52,4],[68,2,68,6],[69,2,69,6],[70,2,70,6],[71,2,71,6],[133,2,133,5],[25,3,25,5],[26,3,26,5],[45,2,45,5],[46,2,46,5],[47,2,47,5],[48,2,48,5],[41,2,41,5],[42,2,42,5],[43,2,43,5],[44,2,44,5],[38,2,38,5],[39,2,39,5],[40,2,40,5],[83,2,83,5],[84,2,84,5],[0,0,0,5],[3,0,5,0],[3,2,3,3],[3,4,3,5],[4,2,4,3],[4,4,4,5],[5,2,5,3],[5,4,5,5],[6,2,6,3],[6,4,6,5],[23,3,23,5],[24,3,24,5],[34,0,37,0],[34,2,34,5],[35,2,35,5],[36,2,36,5],[37,2,37,5],[9,0,10,0],[9,2,10,4],[20,2,20,5],[12,0,13,0],[27,2,27,4],[20,0,21,0],[21,2,21,5],[22,3,22,5],[91,2,91,4],[92,2,92,4],[93,2,93,4],[94,2,94,4],[129,2,129,5],[80,2,80,5],[81,2,81,5],[82,2,82,5],[77,0,78,0],[77,2,77,5],[78,2,78,5],[104,2,104,4],[105,2,105,4],[106,2,106,4],[88,2,88,5],[79,2,79,4],[118,2,118,4],[120,2,120,4],[121,2,121,4],[122,2,122,4],[119,2,119,4],[107,2,107,4],[95,2,95,4],[97,2,97,4],[103,2,103,4],[137,2,137,5],[134,2,134,5],[135,2,135,5],[136,2,136,5],[58,3,58,5],[59,3,59,5],[60,3,60,5],[61,3,61,5],[54,3,54,5],[55,3,55,5],[56,3,56,5],[57,3,57,5],[99,0,101,2],[130,2,130,5],[132,2,132,5],[123,0,125,0],[124,2,124,5],[125,2,125,4],[109,2,109,4],[110,2,110,4],[111,2,111,4],[112,2,112,4],[117,0,119,0],[117,2,117,4],[50,2,50,5],[51,2,51,5],[53,3,53,5],[63,2,63,5],[64,2,64,5],[65,2,65,5],[66,2,66,5],[72,2,72,6],[73,2,73,6]]}
["Vos activités"]
[]
[]
["1.1 : Dans le cadre des activités de type 4, combien de personnes touchez-vous au moins une fois par mois dans un cercle de :",null,"Rayon",null,"Nombre annuel de personnes (valeur 2014)"]
[null,null,"0 - 10 km"]
[null,null,"11 - 30 km"]
["  ",null,"31 - 100 km"]
[null,null,"101 - 300 km"]
[]
["1.2 : Où se situe le site principal d'activité (citez la ville de plus de 10 000 habitants la plus proche) ?"]
[]
[]
["1.3 : Fréquence moyenne d'organisation des réunions pour les membres de votre structure :"]
[]
[]
["1.4.1 : Conditions d'accès à ces réunions"]
["1.4.2 nombre moyen de participants :"]
[]
["1.5 : Fréquence moyenne des séances collectives d'observation :"]
[]
["1.6 : Réalisez-vous des projets techniques :",null,"    Non, aucun"]
[null,null,"    Oui, précisez :"]
[null,null,null,"    Réalisation de télescopes"]
[null,null,null,"    Réalisation de récepteurs (type caméra CCD, Photométre, Spectromètre…)"]
[null,null,null,"    Réalisation d'un observatoire"]
[null,null,null,"    Autres, précisez ci-dessous"]
[]
[null,null,"Etes vous en contact avec un Fablab pour ces projets"]
["1.7 : Nombre moyen de personnes impliquées dans vos projets techniques ?"]
[]
["1.8 : Durée moyenne de vos projets (de la conception à la réalisation) :"]
[]
["1.9 : Ces projets sont-ils destinés à une utilisation au sein de votre structure ou une utilisation personnelle des membres impliqués dans le projet ?"]
[]
["1.10 : Dans les deux dernières années (2014 et 2015) votre structure ou vos adhérents ont-il effectué des observations ou des missions dans des observatoires de mission :",null,"    Non"]
[null,null,"    Oui, dans un observatoire professionnel"]
[null,null,"    Oui, dans des observatoires privés, appartenant à des individuels"]
[null,null,"    Oui, à l'observatoire de Buthiers (Planète Sciences)"]
[null,null,"    Oui, à l'observatoire du Col de la Lèbe"]
[null,null,"    Oui, au Centre d'astronomie de Saint-Michel l'Observatoire"]
[null,null,"    Oui, à l'observatoire de la Hague (Ludiver)"]
[null,null,"    Oui, auprès des Observateurs Associés (Coronographe du Pic du Midi)"]
[null,null,"    Oui, à l'observatoire du Pic du Midi avec l'AT60"]
[null,null,"    Oui à l'observatoire de Saint-Véran (Astroqueyras)"]
[null,null,"    Oui à l'observatoire de Bélesta (Adagio)"]
[null,null,"    Oui, à l'observatoire de la plaine des Makes (La Réunion)"]
[null,null,"    Oui, à l'observatoire Sirène"]
[null,null,"    Oui dans l'observatoire d'autres clubs, précisez ci-dessous"]
[]
[]
["1.11 : Dans les deux dernières années (2013, 2014) votre structre ou vos adhérents ont-ils participé à des programmes, projets, campagnes d'obseravtions professionnelles, des commissions….:",null,"    Non,jamais"]
[null,null,"    Oui, occasionnellement :"]
[null,null,"Combien de membres de vos structures sont impliqués dans ces travaux en %",null,null,null,"%"]
[null,null,null,"    Projets de vérification scientifique comme... (précisez ci-dessous)"]
[null,null,null,"    Projets de recherche ou de détection : Etoiles doubles, variables"]
[null,null,null,"    Projets de recherche ou de détection de Supernovae, étoiles Be"]
[null,null,null,"    Projets de recherche ou de détection PHEMU, occultations par des astéroïdes"]
[null,null,null,"    Projets de recherche ou de détection planétaire"]
[null,null,null,"    Projets de recherche ou de détection d'astéroïdes, de comètes"]
[null,null,null,"    Projets de recherche solaire"]
[null,null,null,"    Autres (précisez ci-dessous)"]
[]
[]
["1,12 : Ces projets sont-ils menés en direct :",null,"    Avec des astronomes professionnels"]
[null,null,"    Avec des laboratoires, des observatoires"]
[null,null,"    Avec des associations spécialisées, si oui précisez ci-dessous lesquelles :"]
[]
[]
["1,13 : Participez-vous (cochez pour oui)",null," A la conception initiale de l'expérimentation, à la définition de l'hypothèse"]
[null,null,"    A la conception du dispositif d'expérimentation "]
[null,null,"    A la récolte de données, les observations "]
[null,null,"Au traiement des données"]
[null,null,"A l'interprétation des réusltats"]
[null,null,"A la publication des résultats"]
[]
["Votre public"]
[]
["2.1 : Existe-t-il des conditions particulières de participation à vos activités :",null,"    Non, aucune"]
[null,null,"    Oui, faire partie de l'établissement (CE, FSE…)"]
[null,null,"    Oui, âge minimum, lequel :",null,null,null,"ans"]
[null,null,"    Oui, formation minimum"]
[null,null,"    Oui, une pratique astronomique minimum"]
[null,null,"    Oui, habiter dans une zone géographique précise (commune, département…)"]
[null,null,"    Oui, autres (précisez ci-dessous)"]
[]
[]
["2.2 : Quel est l'âge moyen de vos membres et sa répartition :"]
[]
["Âge moyen :",null,null,null,null,null,"ans"]
[]
[]
["Répartition :",null," % d'adhérents de moins de 16 ans :"]
[null,null," % d'adhérents ayant entre 16 et 26 ans :"]
[null,null," % d'adhérents entre 27 et 50 ans :"]
[null,null," % d'adhérents de plus de 50 ans :"]
[null,null,"Total",null,null,1]
[]
[null,null," Quel est le pourcentage de femmes :",null,null,null,"%"]
[]
["2.3 : Quel est le pourcentage de vos membres disposant d'un instrument d'observation au moins sup. ou égal à 80 mm pour une lunette  ou sup. ou égal à 130 mm pour un télescope :"]
[]
[null,null,null,null,null,"%"]
[]
["2.4 : Votre public est constitué (en %)",null,"Enseignants, cadres sup., prof. Libérales :",null,null,null,"%"]
[null,null,"Etudiants, scolaires :",null,null,null,"%"]
[null,null,"Artisans, ouvriers :",null,null,null,"%"]
[null,null,"Retraités :",null,null,null,"%"]
[null,null,"Total",null,null,1]
[]
[null,null,"Néophytes (pas de pratiques antérieures) :",null,null,null,"%"]
[null,null,"Astronomes amateurs débutants :",null,null,null,"%"]
[null,null,"Astronomes amateurs confirmés :",null,null,null,"%"]
[null,null,"Total",null,null,1]
[]
["2.5 : Quel est le taux annuel moyen de nouveaux membres (sur les deux dernières années) :"]
[]
[]
["2,6. Combien de vos adhérents en % sont recrutés par ces modes",null,"par la presse locale, le bulletin municipal",null,null,null,"%"]
[null,null,"par le bouche à oreille, le parrainnage par des adhérents",null,null,null,"%"]
[null,null,"sur des manifestations (foire, nuits des étoiles)",null,null,null,"%"]
[null,null,"par internet",null,null,null,"%"]
[null,null,"par des scolaires",null,null,null,"%"]
[null,null,"je ne sais pas"]
["2.7 : Parmi vos membres, combien sont devenus astronomes professionnels, ingénieurs de recherches dans un laboratoire, un observatoire astronomique ?"]
[null,null,"    Non aucun"]
[null,null,"    Oui, précisez combien sur les 10 dernières années"]
[]
["Vos équipements"]
[]
["3.1 : Votre parc de matériel astronomique :",null,"    Non, la structure ne dispose d'aucun matériel"]
[null,null,"    Oui, elle dispose d'un parc de matériel d'observation"]
[]
["3.2 : Disposez-vous d'outils complémentaire :",null,"    Non, aucun"]
[null,null,"    Oui, caméra CCD"]
[null,null,"    Oui, matériel photographique (appareil photo, APN, Webcam…)"]
[null,null,"    Oui, spectroscope, photomètre"]
[null,null,"    Oui, autres (précisez ci-dessous)"]

{"sheet":"Resultats","index":5,"n_rows":2,"n_cols":253,"rows_kept":2,"cut":false,"hidden":true,"merged":[]}
["Id Structure","Nom Structure","Abréviation","Adresse postale","Code postal","Ville","Téléphone","Email structure","Adresse Web","facebook","nbr like","twitter","nbr follower","autres réseaux","Nom et prénom responsable","E-Mail du responsable","Formation du responsable","Autre formations du responsable","Nom et prénom du signataire","Fonction signataire","E-mail signataire","Activité principale","Part en pourcentage de l'astronomie","Activité principale","1.1",1.1100000000000001,"1.2","1.2.2","1,2,2,1","1.3","1.4","1.5","ADH2009","ADH2010","ADH2011","ADH2012","ADH2013","ADH2014","%de femmes","1.8","vol-beneficiaires","CA ANNUEL","1.11.1","1.11.2","1.11.3","1.11.4","1.11.5","2.1","TM>203","TF>203","2.2.3","2.2.4","Tm<400","Tf<400","Tprincipal","nb goto","2.3","dia-pf","2.3.1.1","2.3.1.2","2.3.1.3","dia-pm","2.3.2.1","2.3.2.2","2.3.2.3","2.3.3","2.3.3.1","2.3.3.2","2.3.3.3","2.3.4.1","2.3.4.2","2.3.5","2,3,5,1","3.1.1","3,1,2","3,1,2,1","3.1.2.2","3.1.3","3.1.3.1","3.1.3.2","3.2.1","nbr pages vues","nbr de visiteurs","3.3.1","astromag","astrosurf","Cieleteespace","espace magazine","l'astronomie","la recherche","sciences et avenir","sciences et vie","sky and telescope","autres","astromag","astrosurf","Cieleteespace","espace magazine","l'astronomie","la recherche","sciences et avenir","sciences et vie","sky and telescope","autres","4.1.1","4.1.2","4.1.3","4.1.4","4.1.5","4.1.6","4.1.7","4.2.1","4.2.2","4.2.3","4.2.4","4.2.5","4.2.6","4.2.7","4.2.8","4.3.1","en europe","dans le monde","4.3.4","5.1.1","5.1.2","5.1.3","5.1.4","5.1.5","5.1.6","5.1.7","Stages","conférence","cours","formations à distances","autres","5.2.6","bafa","bpjes","du","autres","5.3.5","vos membres","amateurs ext","animateurs","enseignats","autres","nb total formées","outils tuto, mooc","6.1.1","6.1.2","% de femmes","animateur généralistes saissonnier -emploi non aide","animateur généralistes saissonnier -emploi fongep","animateur généralistes saissonnier -emploi aidés","animateur généralistes saissonnier -total","animateur spécialisé saissonnier -emploi non aide","animateur spécialisé  saissonnier -emploi fongep","animateur spécialisé  saissonnier -emploi aidés","animateur spécialisé  saissonnier -total","emplois on aides animateurs généralistes","emplois jeunes animateurs généralistes permanents","emplois aidés animateurs généralistes","total aniamteurs généralistes permanents","Animat spec permanents","6.2.14","6.2.15","total anim spe permanents","démonstarteur","6.2.18","6.2.19","total démonstrateurs","cadres","6.2.22","6.2.23","total cadres","personnel support","6.2.26","6.2.27","total personnel support","autres","6.2.30","6.2.31","total autres","préciser","bafa","6.2.3","6.2.4","6.2.5","6.2.6","6.2.7","6.2.7.1","nbr nuit des etoiles","nbr de sites","nb fetes de la sciences","nbr de manifestations","nbr de public","nbr de soirées","pas participé aux nef","derniere année","jamais participé à la fete de la sceince","derniere année","jamais particpé au jour de la nuit","7.3.1","7.3.2","7.3.3","7.3.4","7.3.5","7.3.6","Rce","ciel en fête","festival de fleurance","rap","valdrome","autres","aucun projet d'équipement","Instrument dixe","dia","observatoire","dia","plane itinérant","plane fixe","dia","centre animation","telescope en remote","autres","8.1.8.1","8.2.1","8.2.2","8.2.3","8.2.4","8.2.5","8.2.6","8.2.7","8.2.8","autres","précisez","aucune aide","8.3.2","8.3.3","8.3.4","malles peda","prêt de mat","info","conseils","coordina","contac avec pro","8.3.13","8.4","8.5","9.1","9.2","9.3","9.4"]
[null,{"$f":"'Questionaire intial'!$C$3","v":0},{"$f":"'Questionaire intial'!$C$4","v":0},{"$f":"'Questionaire intial'!$C$5","v":0},{"$f":"'Questionaire intial'!$C$6","v":0},{"$f":"'Questionaire intial'!$C$7","v":0},{"$f":"'Questionaire intial'!$C$8","v":0},{"$f":"'Questionaire intial'!$C$9","v":0},{"$f":"'Questionaire intial'!$C$10","v":0},1,{"$f":"'Questionaire intial'!$C$12","v":0},1,{"$f":"'Questionaire intial'!$C$14","v":0},{"$f":"'Questionaire intial'!$C$15","v":0},{"$f":"'Questionaire intial'!$C$17","v":0},{"$f":"'Questionaire intial'!$C$18","v":0},4,{"$f":"'Questionaire intial'!$C$20","v":0},{"$f":"'Questionaire intial'!$C$22","v":0},{"$f":"'Questionaire intial'!$C$23","v":0},{"$f":"'Questionaire intial'!$C$24","v":0},1,{"$f":"'Questionaire intial'!$C$26","v":0},{"$f":"'Questionaire intial'!$C$27","v":0},1,{"$f":"'Questionaire intial'!$C$32","v":0},1,8,{"$f":"'Questionaire intial'!$C$36","v":0},1,{"$f":"'Questionaire intial'!$C$40","v":0},1,{"$f":"'Questionaire intial'!$C$45","v":0},{"$f":"'Questionaire intial'!$D$45","v":0},{"$f":"'Questionaire intial'!$E$45","v":0},{"$f":"'Questionaire intial'!$F$45","v":0},{"$f":"'Questionaire intial'!$G$45","v":0},{"$f":"'Questionaire intial'!$H$45","v":0},{"$f":"'Questionaire intial'!$C$47","v":0},{"$f":"'Questionaire intial'!$C$49","v":0},{"$f":"'Questionaire intial'!$C$51","v":0},{"$f":"'Questionaire intial'!$C$54","v":0},{"$f":"'Questionaire intial'!$E$56","v":0},{"$f":"'Questionaire intial'!$E$57","v":0},{"$f":"'Questionaire intial'!$E$58","v":0},{"$f":"'Questionaire intial'!$E$59","v":0},{"$f":"'Questionaire intial'!$E$60","v":0},1,{"$f":"'Questionaire intial'!$E$68","v":0},{"$f":"'Questionaire intial'!$F$68","v":0},{"$f":"'Questionaire intial'!$E$69","v":0},{"$f":"'Questionaire intial'!$F$69","v":0},{"$f":"'Questionaire intial'!$E$70","v":0},{"$f":"'Questionaire intial'!$F$70","v":0},{"$f":"'Questionaire intial'!$C$72","v":0},{"$f":"'Questionaire intial'!$C$74","v":0},1,{"$f":"'Questionaire intial'!$C$78","v":0},{"$f":"'Questionaire intial'!$C$79","v":0},{"$f":"'Questionaire intial'!$C$80","v":0},{"$f":"'Questionaire intial'!$C$81","v":0},{"$f":"'Questionaire intial'!$C$83","v":0},{"$f":"'Questionaire intial'!$C$84","v":0},{"$f":"'Questionaire intial'!$C$85","v":0},{"$f":"'Questionaire intial'!$C$86","v":0},1,{"$f":"'Questionaire intial'!$C$89","v":0},{"$f":"'Questionaire intial'!$C$90","v":0},{"$f":"'Questionaire intial'!$C$91","v":0},{"$f":"'Questionaire intial'!$E$93","v":0},{"$f":"'Questionaire intial'!$E$94","v":0},1,{"$f":"'Questionaire intial'!$C$98","v":0},1,2,1,{"$f":"'Questionaire intial'!$C$107","v":0},1,1,{"$f":"'Questionaire intial'!$C$111","v":0},1,{"$f":"'Questionaire intial'!$C$116","v":0},{"$f":"'Questionaire intial'!$C$118","v":0},{"$f":"'Questionaire intial'!$C$123","v":0},false,false,false,false,false,false,false,false,false,{"$f":"'Questionaire intial'!$C$131","v":0},{"$f":"'Questionaire intial'!$E$133","v":0},{"$f":"'Questionaire intial'!$E$134","v":0},{"$f":"'Questionaire intial'!$E$135","v":0},{"$f":"'Questionaire intial'!$E$136","v":0},{"$f":"'Questionaire intial'!$E$137","v":0},{"$f":"'Questionaire intial'!$E$138","v":0},{"$f":"'Questionaire intial'!$E$139","v":0},{"$f":"'Questionaire intial'!$E$140","v":0},{"$f":"'Questionaire intial'!$E$141","v":0},{"$f":"'Questionaire intial'!$E$142","v":0},false,false,false,false,false,{"$f":"'Questionaire intial'!$C$152","v":0},{"$f":"'Questionaire intial'!$C$153","v":0},false,false,false,false,false,false,false,{"$f":"'Questionaire intial'!$C$163","v":0},false,false,false,{"$f":"'Questionaire intial'!$C$168","v":0},false,false,false,false,false,false,{"$f":"'Questionaire intial'!$C$178","v":0},false,false,false,false,false,{"$f":"'Questionaire intial'!$C$185","v":0},false,false,false,false,{"$f":"'Questionaire intial'!$C$191","v":0},{"$f":"'Questionaire intial'!$E$194","v":0},{"$f":"'Questionaire intial'!$E$195","v":0},{"$f":"'Questionaire intial'!$E$196","v":0},{"$f":"'Questionaire intial'!$E$197","v":0},{"$f":"'Questionaire intial'!$E$198","v":0},{"$f":"'Questionaire intial'!$C$200","v":0},{"$f":"'Questionaire intial'!$C$202","v":0},{"$f":"'Questionaire intial'!$C$208","v":0},{"$f":"'Questionaire intial'!$C$210","v":0},{"$f":"'Questionaire intial'!$C$212","v":0},{"$f":"'Questionaire intial'!$C$217","v":0},{"$f":"'Questionaire intial'!$D$217","v":0},{"$f":"'Questionaire intial'!$E$217","v":0},{"$f":"'Questionaire intial'!$F$217","v":0},{"$f":"'Questionaire intial'!$C$218","v":0},{"$f":"'Questionaire intial'!$D$218","v":0},{"$f":"'Questionaire intial'!$E$218","v":0},{"$f":"'Questionaire intial'!$F$218","v":0},{"$f":"'Questionaire intial'!$C$219","v":0},{"$f":"'Questionaire intial'!$D$219","v":0},{"$f":"'Questionaire intial'!$E$219","v":0},{"$f":"'Questionaire intial'!$F$219","v":0},{"$f":"'Questionaire intial'!$C$220","v":0},{"$f":"'Questionaire intial'!$D$220","v":0},{"$f":"'Questionaire intial'!$E$220","v":0},{"$f":"'Questionaire intial'!$F$220","v":0},{"$f":"'Questionaire intial'!$C$221","v":0},{"$f":"'Questionaire intial'!$D$221","v":0},{"$f":"'Questionaire intial'!$E$221","v":0},{"$f":"'Questionaire intial'!$F$221","v":0},{"$f":"'Questionaire intial'!$C$222","v":0},{"$f":"'Questionaire intial'!$D$222","v":0},{"$f":"'Questionaire intial'!$E$222","v":0},{"$f":"'Questionaire intial'!$F$222","v":0},{"$f":"'Questionaire intial'!$C$223","v":0},{"$f":"'Questionaire intial'!$D$223","v":0},{"$f":"'Questionaire intial'!$E$223","v":0},{"$f":"'Questionaire intial'!$F$223","v":0},{"$f":"'Questionaire intial'!$C$224","v":0},{"$f":"'Questionaire intial'!$D$224","v":0},{"$f":"'Questionaire intial'!$E$224","v":0},{"$f":"'Questionaire intial'!$F$224","v":0},{"$f":"'Questionaire intial'!$C$226","v":0},{"$f":"'Questionaire intial'!$F$229","v":0},{"$f":"'Questionaire intial'!$F$230","v":0},{"$f":"'Questionaire intial'!$F$231","v":0},{"$f":"'Questionaire intial'!$F$232","v":0},{"$f":"'Questionaire intial'!$F$233","v":0},{"$f":"'Questionaire intial'!$F$234","v":0},{"$f":"'Questionaire intial'!$C$235","v":0},{"$f":"'Questionaire intial'!$C$242","v":0},{"$f":"'Questionaire intial'!$E$242","v":0},{"$f":"'Questionaire intial'!$C$243","v":0},{"$f":"'Questionaire intial'!$E$243","v":0},{"$f":"'Questionaire intial'!$C$244","v":0},{"$f":"'Questionaire intial'!$E$244","v":0},false,{"$f":"'Questionaire intial'!$F$247","v":0},false,{"$f":"'Questionaire intial'!$F$249","v":0},false,false,false,false,false,false,{"$f":"'Questionaire intial'!$C$258","v":0},false,false,false,false,false,{"$f":"'Questionaire intial'!$C$266","v":0},false,false,{"$f":"'Questionaire intial'!$F$271","v":0},false,{"$f":"'Questionaire intial'!$F$272","v":0},false,false,{"$f":"'Questionaire intial'!$F$274","v":0},false,false,false,{"$f":"'Questionaire intial'!$D$277","v":0},false,false,false,false,false,false,false,false,false,{"$f":"'Questionaire intial'!$C$288","v":0},false,false,false,false,false,false,false,false,false,false,{"$f":"'Questionaire intial'!$C$301","v":0},{"$f":"'Questionaire intial'!$A$305","v":0},{"$f":"'Questionaire intial'!$A$315","v":0},{"$f":"'Questionaire intial'!$A$328","v":0},{"$f":"'Questionaire intial'!$B$328","v":0},{"$f":"'Questionaire intial'!$A$331","v":0},{"$f":"'Questionaire intial'!$B$331","v":0}]

{"sheet":"Reponses","index":6,"n_rows":255,"n_cols":6,"rows_kept":255,"cut":false,"hidden":true,"merged":[]}
[]
["Formation responsable"]
[null,"Enseignant"]
[null,"Animateur professionnel"]
[null,"Autre (précisez ci dessous)"]
[]
[]
["Activité de la structure centrée sur l'astronomie"]
[null,"Oui"]
[null,"Non"]
[]
["Type de structure"]
[null,"Association (loi 1901)"]
[null,"Centre culturel"]
[null,"MJC / MPT / Foyer Rural"]
[null,"Foyer socio-éducatif ou BDE d'un établissement scolaire"]
[null,"SARL ou SA ou Scoop"]
[null,"Etablissement public "]
[null,"Regroupement amateur sans forme juridique"]
[null,"Section ou club de MJC/MPT/Foyer rural"]
[null,"Section ou club de foyer rural"]
[null,"Service, atelier municipal"]
[null,"Section ou club de comité d'entreprise"]
[null,"Autre (précisez ci-dessous)"]
[]
[]
["Hébergée à titre :"]
[null,"A titre gracieux"]
[null,"A titre payant"]
[]
["Hébergement dans :"]
[null,"Etablissement scolaire"]
[null,"Centre culturel"]
[null,"MJC / MPT"]
[null,"Foyer rural"]
[null,"Maison des associations ou de quartier"]
[null,"Mairie"]
[null,"Chez un particulier"]
[null,"Autre (précisez)"]
[null,"Sinon, vous jouissez de l'usage exclusif du local de votre structure"]
[]
["Terrain d'observation"]
[null,"Non"]
[null,"Prêté"]
[null,"Loué"]
[null,"Acheté"]
[]
["Rayonnement de la structure"]
[null,"Locale"]
[null,"Départementale"]
[null,"Régionale"]
[null,"Nationale"]
[]
["Equipements d'observations"]
[null,"Oui"]
[null,"Non"]
[null,"Non, mais utilisation occasionnelle du matériel des membres"]
[]
["Planétarium"]
[null,"Non, aucun"]
[null,"Un fixe, ou un mobile"]
[null,null,null,null,null,"Quel équipement significatif"]
["Location planétarium",null,null,null,null,"APN"]
[null,"Oui",null,null,null,"Caméra d'imagerie CCD"]
[null,"Non",null,null,null,"Caméra vidéo pour diffusion publique"]
[null,null,null,null,null,"Spectro"]
["Bulletin ou revue",null,null,null,null,"Autres"]
[null,"Non, aucun"]
[null,"Oui, un bulletin ou une revue",null,null,null,"Page Facebook régulièrement actualisé"]
[null,null,null,null,null,"Imprimé"]
["Bulletin interne",null,null,null,null,"Blog/site internet "]
[null,"Oui",null,null,null," Pdf diffusé par mail, newletter…"]
[null,"Non"]
[]
["Bulletin externe"]
[null,"Oui"]
[null,"Non"]
[]
["Bulletin internet"]
[null,"Oui"]
[null,"Non"]
[]
["Site internet"]
[null,"Non"]
[null,"Non, aucun mes nos membres ont des pages perso."]
[null,"Oui, réservé aux membres"]
[null,"Oui, ouvert à tous"]
[]
["Q 1 : Fréquence d'interventions"]
[null,"Aucune"]
[null,"Une fois par mois"]
[null,"Une fois par semaine"]
[null,"Apériodique"]
[]
["Q 1 : Nombre de participants"]
[null,"Moins de 10"]
[null,"Entre 10 et 25"]
[null,"Plus de 25"]
[]
["Q 1 : Intervenez-vous en dehors de votre structure"]
[null,"Oui, précisez ci dessous la distance"]
[null,"Non"]
[]
["Q 1 : Fréquence d'interventions"]
[null,"Aucune"]
[null,"Une fois par mois"]
[null,"Une fois par semaine"]
[null,"Apériodique"]
[]
["Q 1 : Intervenez-vous en dehors de votre structure"]
[null,"Oui, précisez ci dessous la distance"]
[null,"Non"]
[]
["Q 1 : Fréquence d'interventions"]
[null,"Aucune"]
[null,"Une fois par mois"]
[null,"Une fois par semaine"]
[null,"Apériodique"]
[]
["Q 1 : Nombre de participants"]
[null,"Moins de 10"]
[null,"Entre 10 et 25"]
[null,"Plus de 25"]
[]
["Q 1 : Salon"]
[null,"Oui"]
[null,"Non"]
[]
["Q 1 : Budget matériel animation"]
[null,"Non, aucun budget"]
[null,"Moins de 1 500 Euros"]
[null,"Entre 1 500 Euros et 5 000 Euros"]
[null,"Entre 5 000 Euros et 8 000 Euros"]
[null,"Plus de 8 000 Euros"]
[]
["Q 2 : Fréquence d'organisation"]
[null,"Aucune réunion"]
[null,"Une fois par mois"]
[null,"Tous les 15 jours"]
[null,"Une fois par semaine"]
[null,"Apériodique"]
[]
["Q 2 : Conditions d'accès"]
[null,"Ces réunions sont réservées uniquement aux membres"]
[null,"Elles sont publiques, ouvertes à tous"]
[]
["Q 2 : Nombre moyen de participants"]
[null,"Le nombre moyen de participants est moins de 10"]
[null,"Le nombre moyen de participants est entre 10 et 20"]
[null,"Le nombre moyen de participants est plus de 20"]
[]
["Q 2 : Fréquence scéances d'observation"]
[null,"Aucune séance"]
[null,"Moins d'une fois par mois"]
[null,"Une à deux fois par mois"]
[null,"Toutes les semaines"]
[null,"Sous forme de missions d'observations"]
[]
["Q 2 : Conditions d'accès aux observations"]
[null,"Réservées uniquement aux membres"]
[null,"Publiques, ouvertes à tous"]
[]
["Q 2 : Nombre moyen de participants"]
[null,"Le nombre moyen de participants est moins de 10"]
[null,"Le nombre moyen de participants est entre 10 et 20"]
[null,"Le nombre moyen de participants est plus de 20"]
[]
["Q 2 : Nombre de personnes projets techniques"]
[null,"Moins de 3"]
[null,"Entre 3 et 10"]
[null,"Plus de 10"]
[]
["Q 2 : Durée projets techniques"]
[null,"Moins d'un mois"]
[null,"Entre 1 mois et 1 an"]
[null,"Plus d'un an"]
[]
["Q 2 : Destination projet technique"]
[null,"Dans la structure"]
[null,"Personnelle"]
[]
["Q2 : Taux annuel de nouveaux membres"]
[null,"0 % de nouveaux membres"]
[null,"10 % de nouveaux membres"]
[null,"Entre 11 et 25 % de nouveaux membres"]
[null,"Entre 26 et 50 % de nouveaux membres"]
[null,"Plus de 50 % de nouveaux membres"]
[]
["Q3 : Fréqence"]
[null,"Aucune"]
[null,"Une fois par mois"]
[null,"Une fois par semaine"]
[null,"Apériodique"]
[]
["Q3 : Fréquence"]
[null,"Aucune"]
[null,"Une fois par mois"]
[null,"Une fois par semaine"]
[null,"Apériodique"]
[]
["Q3 : Nombre de participants"]
[null,"Moins de 10"]
[null,"Entre 10 et 25"]
[null,"Plus de 25"]
[]
["Q3 : Capacité hébregement"]
[null,"Non"]
[null,"Oui, d'une capacité inférieure à 10 places"]
[null,"Oui, d'une capacité entre 10 et 30 places"]
[null,"Oui, d'une capacité de plus de 30 places"]
[]
["Q4 : Fréquence des réunions"]
[null,"Aucune réunion"]
[null,"Une fois par mois"]
[null,"Tous les 15 jours"]
[null,"Apériodique"]
[null,"une fois par semaine"]
[]
[]
["Q4 : Accès aux réunions"]
[null,"Ces réunions sont réservées uniquement aux membres"]
[null,"Elles sont publiques, ouvertes à tous"]
[]
["Q4 : Nombre de participants"]
[null,"Le nombre moyen de participants est moins de 10"]
[null,"Le nombre moyen de participants est entre 10 et 20"]
[null,"Le nombre moyen de participants est plus de 20"]
[]
["Q4 Fréquence séances d'observation"]
[null,"Aucune séance"]
[null,"Moins d'une fois par mois"]
[null,"Une à deux fois par mois"]
[null,"Toutes les semaines"]
[null,"Sous forme de missions d'observation"]
[]
["Q4 : Nombre de personnes projets techniques"]
[null,"Moins de 3"]
[null,"Entre 3 et 10"]
[null,"Plus de 10"]
[]
["Q4 : Durée projets techniques"]
[null,"Moins d'un mois"]
[null,"Entre 1 mois et 1 an"]
[null,"Plus d'un an"]
[]
["Q4 : Destination projet technique"]
[null,"Dans la structure"]
[null,"Personnelle"]
[]
["Q4 : Nouveaux membres"]
[null,"0 % de nouveaux membres"]
[null,"10 % de nouveaux membres"]
[null,"Entre 11 et 25 % de nouveaux membres"]
[null,"Entre 26 et 50 % de nouveaux membres"]
[null,"Plus de 50 % de nouveaux membres"]

{"sheet":"RQ1","index":7,"n_rows":2,"n_cols":75,"rows_kept":2,"cut":false,"hidden":true,"merged":[]}
["Id Structure","Q1-1.1.1","Q1-1.1.2","Q1-1.1.3","Q1-1.1.4","Q1-1.2","Q1-1.3","Q1-1.4","Q1 - 1.5.1","Q1 - 1.5.2","Q1 - 1.5.3","Q1 - 1.5.4","Q1 - 1.6.1","Q1 - 1.6.2","Q1 - 1.6.3","Q1 - 1.7.1","Q1 - 1.7.2","Q1 - 1.7.3","Q1 - 1.7.4","Q1 - 1.7.5","Q1 - 1.7.6","Q1 - 1.7.7","Q1 - 1.7.8","Q1 - 1.8.1","Q1 - 1.8.2","Q1 - 2.1.1","Q1 - 2.1.2","Q1 - 2.1.3","Q1 - 2.1.4","Des voisins, riverains ou habitants proches :","habitants de la région","vacanciers","étrangers","fréquence organisation","Q1 - 2.3","Q1 -%hommes","Q1 -%femmes","%amateurs","<25 ans %","entre26 -49 ans",">50 ans %","gratuite","payantes","subventionnées","Q1 - 2.7.1","Q1 - 2.7.2","Q1 - 2.7.3","Q1 -2.7.4","Q1 - 2.7.5","Q1 - 2.7.6","Q1 - 2.7.7","Q1 -2.7.8","Q1 - 2.7.9","Q1 - 3.7.11","Q1 - 2.8","Q1-3.8.1","Q1 - 3.9.1","Q1 - 3.9.2","Q1 - 3.9.2.1","Q1 - 3.9.3","Q1 - 3.10.1","Q1 - 3.10.2","foires et salons","nbr de personnes","pas de salle","salle d expo","m2","fréquentation en peronnes","% du ca","pas produits","cartes","photo/posters","goodies","accessoires /instruments","% du ca"]
[{"$f":"Resultats!B2","v":0},{"$f":"'Questionnaire 1'!$E$5","v":0},{"$f":"'Questionnaire 1'!$E$6","v":0},{"$f":"'Questionnaire 1'!$E$7","v":0},{"$f":"'Questionnaire 1'!$E$8","v":0},{"$f":"'Questionnaire 1'!$C$10","v":0},1,1,{"$f":"'Questionnaire 1'!$E$17","v":0},{"$f":"'Questionnaire 1'!$E$18","v":0},{"$f":"'Questionnaire 1'!$E$19","v":0},{"$f":"'Questionnaire 1'!$E$20","v":0},false,false,false,false,false,false,false,false,false,false,false,2,{"$f":"'Questionnaire 1'!$E$36","v":0},{"$f":"'Questionnaire 1'!$E$41","v":0},{"$f":"'Questionnaire 1'!$E$42","v":0},{"$f":"'Questionnaire 1'!$E$43","v":0},{"$f":"'Questionnaire 1'!$E$44","v":0},{"$f":"'Questionnaire 1'!$F$46","v":0},{"$f":"'Questionnaire 1'!$F$47","v":0},{"$f":"'Questionnaire 1'!$F$48","v":0},{"$f":"'Questionnaire 1'!$F$49","v":0},3,1,{"$f":"'Questionnaire 1'!$F$56","v":0},{"$f":"'Questionnaire 1'!$F$57","v":0},{"$f":"'Questionnaire 1'!$F$58","v":0},{"$f":"'Questionnaire 1'!$F$59","v":0},{"$f":"'Questionnaire 1'!$F$60","v":0},{"$f":"'Questionnaire 1'!$F$61","v":0},false,false,false,false,false,false,false,false,false,false,false,false,{"$f":"'Questionnaire 1'!$C$76","v":0},1,false,false,false,false,false,false,false,2,{"$f":"'Questionnaire 1'!$F$92","v":0},false,false,{"$f":"'Questionnaire 1'!$F$95","v":0},{"$f":"'Questionnaire 1'!$F$96","v":0},{"$f":"'Questionnaire 1'!$C$99","v":0},false,false,false,false,false,{"$f":"'Questionnaire 1'!$C$109","v":0}]

{"sheet":"RQ2","index":8,"n_rows":2,"n_cols":107,"rows_kept":2,"cut":false,"hidden":true,"merged":[]}
["Id Structure","Q2-1.1.1","Q2-1.1.2","Q2-1.1.3","Q2-1.1.4","Q2-1.2","Q2-1.3","Q2-1.4.1","Q2-1.4.2","Q2-1.5","Q2-1.6.1","Q2-1.6.2","Q2-1.7.1","Q2-1.7.2","Q2-1.7.2.1","Q2-1.7.2.2","Q2-1.7.2.3","Q2-1.7.2.4","Q2-1.7.2.5","Q2-1.8","Q2-1.9","Q2-1.10","Q2-1.11.1","Q2-1.11.2","Q2-1.11.3","Q2-1.11.4","Q2-1.12.1","Q2-1.12.2","Q2-1.12.3","Q2-1.12.4","Q2-1.12.5","Q2-1.12.6","Q2-1.12.7","Q2-1.12.8","Q2-1.12.9","Q2-1.12.10","Q2-1.12.11","Q2-1.12.12","Q2-1.12.13","Q2-1.12.14","Q2-1.12.15","Q2-1.13.1","Q2-1.13.2","Q2-1.13.3","Q2-1.13.4","Q2-2.1.1","Q2-2.1.2","Q2-2.1.3","Q2-2.1.3.1","Q2-2.1.4","Q2-2.1.5","Q2-2.1.6","Q2-2.1.7","Q2-2.2.1","Q2-2.2.2","Q2-2.2.3","Q2-2.2.4","Q2-2.2.5","Q2-2.2.6","Q2-2.3","Q2-2.4","Q2-2.5.1","Q2-2.5.2","Q2-2.5.3","Q2-2.5.4","néophytes","débutants","confirmes","% de femmes","taux de renouvellement","PRESSE","PARRAINNAGE","MANIF","INTERNET","SCOLAIRES","SAIS PAS","Q2-2.7.1","Q2-2.7.2","Q2-3.1.1","Q2-3.1.2","Q2-3.1.3","Q2-3.1.4","Q2-3.2.1","Q2-3.2.2","Q2-3.2.3","Q2-3.2.4","Q2-3.2.5","Q2-3.2.6","Q2-3.2.7","Q2-3.3.1","Q2-3.3.2","Q2-3.3.3","Q2-3.4.1","Q2-3.4.2","Q2-3.4.2.1","Q2-3.4.2.2","Q2-3.4.2.3","Q2-3.4.2.4","Q2-3.4.2.5","Q2-3.4.2.6","Q2-3.4.2.7","Q2-3.4.2.8","Q2-3.4.2.8.1","Q2-3.5.1","Q2-3.5.2","Q2-3.5.3","Q2-3.5.4"]
[{"$f":"Resultats!B2","v":0},{"$f":"'Questionnaire 2'!$E$5","v":0},{"$f":"'Questionnaire 2'!$E$6","v":0},{"$f":"'Questionnaire 2'!$E$7","v":0},{"$f":"'Questionnaire 2'!$E$8","v":0},{"$f":"'Questionnaire 2'!$C$10","v":0},1,1,1,1,1,1,false,null,false,null,false,null,{"$f":"'Questionnaire 2'!$D$30","v":0},1,1,1,false,false,false,false,false,false,false,false,false,false,false,null,false,false,false,false,false,false,{"$f":"'Questionnaire 2'!$C$57","v":0},false,false,false,{"$f":"'Questionnaire 2'!$F$62","v":0},false,null,false,{"$f":"'Questionnaire 2'!$F$69","v":0},null,false,false,{"$f":"'Questionnaire 2'!$C$74","v":0},{"$f":"'Questionnaire 2'!$C$78","v":0},{"$f":"'Questionnaire 2'!$F$81","v":0},{"$f":"'Questionnaire 2'!$F$82","v":0},{"$f":"'Questionnaire 2'!$F$83","v":0},{"$f":"'Questionnaire 2'!$F$84","v":0},{"$f":"'Questionnaire 2'!$F$87","v":0},{"$f":"'Questionnaire 2'!$E$91","v":0},{"$f":"'Questionnaire 2'!$C$93","v":0},{"$f":"'Questionnaire 2'!$F$95","v":0},{"$f":"'Questionnaire 2'!$F$96","v":0},{"$f":"'Questionnaire 2'!$F$97","v":0},{"$f":"'Questionnaire 2'!$F$98","v":0},{"$f":"'Questionnaire 2'!$F$101","v":0},{"$f":"'Questionnaire 2'!$F$102","v":0},{"$f":"'Questionnaire 2'!$F$103","v":0},{"$f":"'Questionnaire 2'!$C$106","v":0},1,{"$f":"'Questionnaire 2'!$F$110","v":0},{"$f":"'Questionnaire 2'!$F$111","v":0},{"$f":"'Questionnaire 2'!$F$112","v":0},{"$f":"'Questionnaire 2'!$F$113","v":0},{"$f":"'Questionnaire 2'!$F$114","v":0},false,false,{"$f":"'Questionnaire 2'!$F$119","v":0},false,false,false,{"$f":"'Questionnaire 2'!$F$126","v":0},false,false,false,false,false,false,{"$f":"'Questionnaire 2'!$C$134","v":0},false,false,false,false,false,false,false,false,false,false,false,false,false,{"$f":"'Questionnaire 2'!$D$150","v":0},false,false,false,{"$f":"'Questionnaire 2'!$C$155","v":0}]

{"sheet":"RQ3","index":9,"n_rows":2,"n_cols":54,"rows_kept":2,"cut":false,"hidden":true,"merged":[]}
["Id Structure","Q3-1.1.1","Q3-1.1.2","Q3-1.1.3","Q3-1.1.4","VOISINS","REGION","TOURISTES","ETRANGERS","Q3-1.3","Q3-1.4.1","Q3-1.4.2","Q3-1.4.3","Q3-1.4.4","Q3-1.4.5","Q3-1.4.5.1","Q3-1.4.6","Q3-1.4.7","Q3-1.5.1","Q3-1.5.2","Q3-1.5.3","Q3-2.1.1","Q3-2.1.2","Q3-2.1.3","Q3-2.1.4","voisins","region","touristes","étrangers","Q3-2.3","Q3-2.4","Q3-2.5.1","Q3-2.5.2","Q3-2.5.3","Q3-2.5.4","Q3-2.5.5","Q3-2.5.6","Q3-2.6.1","Q3-2.6.2","Q3-2.6.3","hebergement","Taux occupation","Q3-2.10.1","Q3-2.10.2","Q3-2.10.3","Q3-2.10.4","Q3-2.11.1","Q3-2.11.2","Q3-2.11.3","Q3-2.12.1","Q3-2.12.2","Q3-2.12.3","Q3-2.12.4","autres"]
[{"$f":"Resultats!B2","v":0},{"$f":"'Questionnaire 3'!$E$5","v":0},{"$f":"'Questionnaire 3'!$E$6","v":0},{"$f":"'Questionnaire 3'!$E$7","v":0},{"$f":"'Questionnaire 3'!$E$8","v":0},{"$f":"'Questionnaire 3'!$F$10","v":0},{"$f":"'Questionnaire 3'!$F$11","v":0},{"$f":"'Questionnaire 3'!$F$12","v":0},{"$f":"'Questionnaire 3'!$F$13","v":0},1,false,false,false,false,false,{"$f":"'Questionnaire 3'!$C$22","v":0},{"$f":"'Questionnaire 3'!$C$24","v":0},{"$f":"'Questionnaire 3'!$C$25","v":0},false,false,false,{"$f":"'Questionnaire 3'!$E$35","v":0},{"$f":"'Questionnaire 3'!$E$36","v":0},{"$f":"'Questionnaire 3'!$E$37","v":0},{"$f":"'Questionnaire 3'!$E$38","v":0},{"$f":"'Questionnaire 3'!$F$40","v":0},{"$f":"'Questionnaire 3'!$F$41","v":0},{"$f":"'Questionnaire 3'!$F$42","v":0},{"$f":"'Questionnaire 3'!$F$43","v":0},4,1,{"$f":"'Questionnaire 3'!$F$49","v":0},{"$f":"'Questionnaire 3'!$F$50","v":0},{"$f":"'Questionnaire 3'!$F$51","v":0},{"$f":"'Questionnaire 3'!$F$52","v":0},{"$f":"'Questionnaire 3'!$F$53","v":0},{"$f":"'Questionnaire 3'!$F$54","v":0},false,false,false,1,{"$f":"'Questionnaire 3'!$C$62","v":0},{"$f":"'Questionnaire 3'!F64","v":0},{"$f":"'Questionnaire 3'!F65","v":0},{"$f":"'Questionnaire 3'!F66","v":0},{"$f":"'Questionnaire 3'!F67","v":0},false,false,{"$f":"'Questionnaire 3'!$C$71","v":0},false,false,false,null,{"$f":"'Questionnaire 3'!$D$77","v":0}]

{"sheet":"RQ4","index":10,"n_rows":2,"n_cols":97,"rows_kept":2,"cut":false,"hidden":true,"merged":[]}
["Id Structure","Q4-1.1.1","Q4-1.1.2","Q4-1.1.3","Q4-1.1.4","Q4-1.2","Q4-1.3","Q4-1.4.1","Q4-1.4.2","Q4-1.5","Q4-1.6.1","Q4-1.6.2","Q4-1.6.2.1","Q4-1.6.2.2","Q4-1.6.2.3","autres","précisez","fablab","Q4-1.7","Q4-1.8","Q4-1.9","Q4-1.10.1","Q4-1.10.2","Q4-1.10.3","Q4-1.10.4","Q4-1.10.5","Q4-1.10.6","Q4-1.10.7","Q4-1.10.8","Q4-1.10.9","Q4-1.10.10","Q4-1.10.11","Q4-1.10.12","Q4-1.10.13","Q4-1.10.14","précisez","Q4-1,11,1","Q4-1,11,2","Q4-1,11,3","Q4-1,11,4","Q4-1,11,5","Q4-1,11,6","Q4-1,11,7","Q4-1,11,8","Q4-1,11,9","precisez","Q4-1,12,1","Q4-1,12,2","Q4-1,12,3","PARTENAIRES","hypothese","protocole","obseravtions","traitement","interprétation","publictaion","Q4-2.1.1","Q4-2.1.2","Q4-2.1.3","Q4-2.1.3.1","Q4-2.1.4","Q4-2.1.5","Q4-2.1.6","Q4-2.1.7","Q4-2.1.7.1","Q4-2.2.1","Q4-2.2.2","Q4-2.2.3","Q4-2.2.4","Q4-2.2.5","% DE FEMMES","Q4-2.3","Q4-2.5.1","Q4-2.5.2","Q4-2.5.3","Q4-2.5.4","Q4-2.5.5","Q4-2.5.6","Q4-2.5.7","Q4-2.6","Presse","parrainnage","manif","internet","scolaires","je ne sais","Q4-2.7.1","Q4-2.7.2","Q4-2.7.3","Q4-3.1.1","Q4-3.1.2","Q4-3.2.1","Q4-3.2.2","Q4-3.2.3","Q4-3.2.5","Q4-3.2.6","Q4-3.2.7"]
[{"$f":"Resultats!B2","v":0},{"$f":"'Questionnaire 4'!$E$5","v":0},{"$f":"'Questionnaire 4'!$E$6","v":0},{"$f":"'Questionnaire 4'!$E$7","v":0},{"$f":"'Questionnaire 4'!$E$8","v":0},{"$f":"'Questionnaire 4'!$C$10","v":0},1,1,1,1,false,false,false,false,false,false,{"$f":"'Questionnaire 4'!$D$27","v":0},2,1,1,1,false,false,false,false,false,false,false,false,false,false,false,false,false,false,{"$f":"'Questionnaire 4'!$C$49","v":0},false,false,false,false,false,false,false,false,false,{"$f":"'Questionnaire 4'!$D$62","v":0},false,false,false,{"$f":"'Questionnaire 4'!$C$67","v":0},false,false,false,false,false,false,false,false,false,{"$f":"'Questionnaire 4'!$F$80","v":0},false,false,false,false,{"$f":"'Questionnaire 4'!$C$85","v":0},{"$f":"'Questionnaire 4'!$C$89","v":0},{"$f":"'Questionnaire 4'!$F$92","v":0},{"$f":"'Questionnaire 4'!$F$93","v":0},{"$f":"'Questionnaire 4'!$F$94","v":0},{"$f":"'Questionnaire 4'!$F$95","v":0},{"$f":"'Questionnaire 4'!$F$98","v":0},{"$f":"'Questionnaire 4'!$E$102","v":0},{"$f":"'Questionnaire 4'!$F$104","v":0},{"$f":"'Questionnaire 4'!$F$105","v":0},{"$f":"'Questionnaire 4'!$F$106","v":0},{"$f":"'Questionnaire 4'!$F$107","v":0},{"$f":"'Questionnaire 4'!$F$110","v":0},{"$f":"'Questionnaire 4'!$F$111","v":0},{"$f":"'Questionnaire 4'!$F$112","v":0},1,{"$f":"'Questionnaire 4'!$F$118","v":0},{"$f":"'Questionnaire 4'!$F$119","v":0},{"$f":"'Questionnaire 4'!$F$120","v":0},{"$f":"'Questionnaire 4'!$F$121","v":0},{"$f":"'Questionnaire 4'!$F$122","v":0},false,false,false,{"$f":"'Questionnaire 4'!$F$126","v":0},false,false,false,false,false,false,false,{"$f":"'Questionnaire 4'!$C$138","v":0}]